bitfinex/quotes_BTCUSD_20250601
["timestamp","ask_amount","ask_price","bid_price","bid_amount"]
[1748739826120,1.2066938,104460.0,104450.0,0.45236806]
[1748739826441,1.2066938,104460.0,104450.0,0.44340051]
[1748739826722,1.2066938,104460.0,104450.0,0.43667485]
[1748739827315,1.2066938,104460.0,104450.0,0.4456424]
[1748739827520,0.7930938,104460.0,104450.0,0.45236806]
[1748739827984,0.7930938,104460.0,104450.0,0.43667485]
[1748739828182,0.7930938,104460.0,104450.0,0.44340104]
[1748739828507,0.7930938,104460.0,104450.0,0.45236939]
[1748739828640,0.7930938,104460.0,104450.0,0.43667485]
[1748739828847,0.7930938,104460.0,104450.0,0.4456433]
[1748739829053,0.7930938,104460.0,104450.0,0.44340118]
[1748739829769,0.7930938,104460.0,104450.0,0.45236985]
[1748739829983,0.7776938,104460.0,104450.0,0.45236985]
[1748739830719,0.7616938,104460.0,104450.0,0.45236985]
[1748739830925,0.7616938,104460.0,104450.0,0.4523699]
[1748739831887,0.7616938,104460.0,104450.0,0.43443837]
[1748739832095,0.7616938,104460.0,104450.0,0.43443887]
[1748739832512,0.7616938,104460.0,104450.0,0.43443974]
[1748739832723,0.7616938,104460.0,104450.0,0.41874332]
[1748739832936,0.7616938,104460.0,104450.0,0.43443973]
[1748739833139,0.7616938,104460.0,104450.0,0.42547035]
[1748739833350,0.7616938,104460.0,104450.0,0.43444117]
[1748739833963,0.7616938,104460.0,104450.0,0.43444305]
[1748739834318,0.7616938,104460.0,104450.0,0.4344456]
[1748739834696,0.7616938,104460.0,104450.0,0.42771605]
[1748739834903,0.7616938,104460.0,104450.0,0.42771606]
[1748739835113,0.7616938,104460.0,104450.0,0.41874332]
[1748739835374,0.7616938,104460.0,104450.0,0.43444566]
[1748739835584,0.7616938,104460.0,104450.0,0.43444623]
[1748739836010,0.7616938,104460.0,104450.0,0.41874332]
[1748739836188,0.7616938,104460.0,104450.0,0.43444684]
[1748739836415,0.7616938,104460.0,104450.0,0.43444686]
[1748739836607,0.7616938,104460.0,104450.0,0.43444687]
[1748739836807,0.7616938,104460.0,104450.0,0.43444697]
[1748739837011,0.7616938,104460.0,104450.0,0.43444709]
[1748739837211,0.7616938,104460.0,104450.0,0.43444712]
[1748739838062,0.7616938,104460.0,104450.0,0.43444725]
[1748739838267,0.7616938,104460.0,104450.0,0.43444738]
[1748739838396,0.7616938,104460.0,104450.0,0.41874332]
[1748739838598,0.7616938,104460.0,104450.0,0.4344474]
[1748739839036,0.4684938,104460.0,104450.0,0.4344474]
[1748739839242,0.7616138,104460.0,104450.0,0.4344474]
[1748739839468,0.7616138,104460.0,104450.0,0.43444737]
[1748739839893,0.7616138,104460.0,104450.0,0.42547363]
[1748739840100,0.96957464,104460.0,104450.0,0.41814366]
[1748739840316,0.96957464,104460.0,104450.0,0.42487397]
[1748739840524,0.98467464,104460.0,104450.0,0.42487397]
[1748739841457,0.98467464,104460.0,104450.0,0.41814365]
[1748739841673,0.98467464,104460.0,104450.0,0.42487395]
[1748739841877,0.98467464,104460.0,104450.0,0.37332499]
[1748739842979,0.98467464,104460.0,104450.0,0.38289839]
[1748739843212,0.98467464,104460.0,104450.0,0.37332498]
[1748739843447,1.05337584,104460.0,104450.0,0.36375149]
[1748739843863,0.98467464,104460.0,104450.0,0.36375149]
[1748739844077,0.98467464,104460.0,104450.0,0.37332499]
[1748739845365,0.98467464,104460.0,104450.0,0.37332498]
[1748739845581,0.98467464,104460.0,104450.0,0.36375147]
[1748739845744,0.96552903,104460.0,104450.0,0.14355119]
[1748739845921,1.05804025,104460.0,104450.0,0.12784713]
[1748739846121,1.15389455,104460.0,104450.0,0.12784713]
[1748739846372,1.15389455,104460.0,104450.0,0.14355261]
[1748739846574,1.15389455,104460.0,104450.0,0.1368215]
[1748739846784,1.15389455,104460.0,104450.0,0.14355273]
[1748739847092,1.15389455,104460.0,104450.0,0.1368215]
[1748739847500,1.15389455,104460.0,104450.0,0.14579638]
[1748739847721,1.15389455,104460.0,104450.0,0.1368215]
[1748739848321,1.15389455,104460.0,104450.0,0.14579639]
[1748739848531,1.15389455,104460.0,104450.0,0.1368215]
[1748739848951,1.15389455,104460.0,104450.0,0.15477128]
[1748739849158,1.15389455,104460.0,104450.0,0.14579639]
[1748739849381,1.15389455,104460.0,104450.0,0.15252756]
[1748739849570,1.15389455,104460.0,104450.0,0.14579639]
[1748739849771,1.13879455,104460.0,104450.0,0.1547713]
[1748739849924,1.13879455,104460.0,104450.0,0.14579639]
[1748739850391,1.13879455,104460.0,104450.0,0.15477129]
[1748739850591,1.12229455,104460.0,104450.0,0.14579639]
[1748739850795,1.12229455,104460.0,104450.0,0.15477133]
[1748739851155,1.12229455,104460.0,104450.0,0.14579639]
[1748739851982,1.12229455,104460.0,104450.0,0.15477133]
[1748739852212,1.12229455,104460.0,104450.0,0.14579639]
[1748739852647,1.12229455,104460.0,104450.0,0.15477146]
[1748739852879,1.12229455,104460.0,104450.0,0.14579639]
[1748739853091,1.12229455,104460.0,104450.0,0.15252768]
[1748739853305,1.12229455,104460.0,104450.0,0.14579639]
[1748739853515,1.12229455,104460.0,104450.0,0.15477145]
[1748739853722,1.12229455,104460.0,104450.0,0.14579639]
[1748739854751,1.12229455,104460.0,104450.0,0.15252771]
[1748739855058,1.12229455,104460.0,104450.0,0.14579639]
[1748739856276,1.12229455,104460.0,104450.0,0.1547716]
[1748739856672,1.12229455,104460.0,104450.0,0.14579639]
[1748739857493,1.12229455,104460.0,104450.0,0.15477167]
[1748739857697,1.12229455,104460.0,104450.0,0.14579639]
[1748739858488,1.12229455,104460.0,104450.0,0.15477166]
[1748739858690,1.12229455,104460.0,104450.0,0.14579639]
[1748739860365,1.12229455,104460.0,104450.0,0.15477166]
[1748739860593,1.12229455,104460.0,104450.0,0.14579639]
[1748739862260,1.12229455,104460.0,104450.0,0.15477166]
[1748739862451,1.12229455,104460.0,104450.0,0.14579639]
[1748739862672,1.12229455,104460.0,104450.0,0.15477165]
[1748739862871,1.13229455,104460.0,104450.0,0.14579639]
[1748739871119,1.54593455,104460.0,104450.0,0.14579639]
[1748739871883,1.54593455,104460.0,104450.0,0.10990774]
[1748739879330,1.5604754,104460.0,104450.0,0.10990774]
[1748739880144,1.5892244,104460.0,104450.0,0.10990774]
[1748739881846,1.5892244,104460.0,104450.0,0.10093591]
[1748739883400,2.0845244,104460.0,104450.0,0.10093591]
[1748739889158,1.7013644,104460.0,104450.0,0.10093591]
[1748739889365,2.0843244,104460.0,104450.0,0.10093591]
[1748739889759,2.15051001,104460.0,104450.0,0.10093591]
[1748739889968,2.14051001,104460.0,104450.0,0.10093591]
[1748739891778,2.15601001,104460.0,104450.0,0.10093591]
[1748739891961,2.17131001,104460.0,104450.0,0.08299192]
[1748739892796,2.51131001,104460.0,104450.0,0.08299192]
[1748739895344,2.01601001,104460.0,104450.0,0.08299192]
[1748739900287,2.0160246,104460.0,104450.0,0.08299192]
[1748739900498,1.7229846,104460.0,104450.0,0.08299192]
[1748739900712,1.93347338,104460.0,104450.0,0.08299192]
[1748739900932,1.53601253,104460.0,104450.0,0.08299192]
[1748739901136,1.91893253,104460.0,104450.0,0.08299192]
[1748739901748,1.91893253,104460.0,104450.0,0.06504954]
[1748739901966,2.01144375,104460.0,104450.0,0.03284954]
[1748739902167,0.21064643,104440.0,104430.0,0.18873151]
[1748739902378,0.97270158,104440.0,104430.0,0.12433151]
[1748739902575,0.94160158,104440.0,104430.0,0.08583151]
[1748739902985,0.94160185,104440.0,104430.0,0.0666804]
[1748739903443,0.94160185,104440.0,104430.0,0.06672916]
[1748739905015,0.93202753,104440.0,104430.0,0.05715346]
[1748739905222,0.93202753,104440.0,104430.0,0.05815346]
[1748739905429,0.93202753,104440.0,104430.0,0.06772925]
[1748739906725,0.93202753,104440.0,104430.0,0.07730495]
[1748739907549,0.93202753,104440.0,104430.0,0.09645552]
[1748739907550,0.75010352,104440.0,104430.0,0.09645552]
[1748739907756,0.76925262,104440.0,104430.0,0.09645552]
[1748739907958,0.7788274,104440.0,104430.0,0.09645552]
[1748739908386,0.77882822,104440.0,104430.0,0.0964557]
[1748739908806,0.77882822,104440.0,104430.0,0.11438908]
[1748739909243,0.77882822,104440.0,104430.0,0.11438666]
[1748739909683,0.77882822,104440.0,104430.0,0.11438524]
[1748739909885,0.7692539,104440.0,104430.0,0.11438524]
[1748739910959,0.7692539,104440.0,104430.0,0.11438427]
[1748739912144,0.7692539,104440.0,104430.0,0.0964557]
[1748739912307,0.951177,104440.0,104430.0,0.0964557]
[1748739912523,0.951177,104440.0,104430.0,0.11438362]
[1748739912930,0.951177,104440.0,104430.0,0.0964557]
[1748739913136,0.951177,104440.0,104430.0,0.11438319]
[1748739913345,0.951177,104440.0,104430.0,0.11438318]
[1748739913779,0.951177,104440.0,104430.0,0.11438247]
[1748739914338,0.951177,104440.0,104430.0,0.12334606]
[1748739914540,0.951177,104440.0,104430.0,0.12334614]
[1748739914765,0.951177,104440.0,104430.0,0.0964557]
[1748739914994,0.951177,104440.0,104430.0,0.12334614]
[1748739915203,0.951177,104440.0,104430.0,0.12334609]
[1748739915596,0.951177,104440.0,104430.0,0.12334572]
[1748739916157,0.951177,104440.0,104430.0,0.12334498]
[1748739916366,0.951177,104440.0,104430.0,0.11438107]
[1748739916638,0.568257,104440.0,104430.0,0.0964557]
[1748739916765,0.951137,104440.0,104430.0,0.12334375]
[1748739917005,0.951137,104440.0,104430.0,0.12334389]
[1748739917374,0.951137,104440.0,104430.0,0.11376863]
[1748739917575,0.951057,104440.0,104430.0,0.11376863]
[1748739917783,0.951057,104440.0,104430.0,0.11376779]
[1748739917988,0.951057,104440.0,104430.0,0.11376739]
[1748739918196,0.951057,104440.0,104430.0,0.1137674]
[1748739918879,0.94148231,104440.0,104430.0,0.07669159]
[1748739919094,1.03399353,104440.0,104430.0,0.1137685]
[1748739919319,1.03399353,104440.0,104430.0,0.11376853]
[1748739919537,1.03399353,104440.0,104430.0,0.11376858]
[1748739919999,0.94148231,104440.0,104430.0,0.12334399]
[1748739920931,0.64852231,104440.0,104430.0,0.11438132]
[1748739921130,0.94144231,104440.0,104430.0,0.12334467]
[1748739921328,0.94144231,104440.0,104430.0,0.10541887]
[1748739921464,0.94144231,104440.0,104430.0,0.09645597]
[1748739921871,0.94144231,104440.0,104430.0,0.11438176]
[1748739922132,0.94144231,104440.0,104430.0,0.09645597]
[1748739922847,0.94144231,104440.0,104430.0,0.10541853]
[1748739922985,0.94114231,104440.0,104430.0,0.12334365]
[1748739923210,0.94114231,104440.0,104430.0,0.09645597]
[1748739924449,0.94114231,104440.0,104430.0,0.08688055]
[1748739924785,0.94114231,104440.0,104430.0,0.09645606]
[1748739924985,0.94114231,104440.0,104430.0,0.10541921]
[1748739925290,0.94114231,104440.0,104430.0,0.11438235]
[1748739925584,0.94114231,104440.0,104430.0,0.10541919]
[1748739925795,0.94114231,104440.0,104430.0,0.12334807]
[1748739926220,0.94114231,104440.0,104430.0,0.123349]
[1748739926710,0.94114231,104440.0,104430.0,0.12335302]
[1748739928168,0.94114231,104440.0,104430.0,0.0958462]
[1748739928381,0.94114231,104440.0,104430.0,0.08688055]
[1748739928668,0.94114231,104440.0,104430.0,0.10481246]
[1748739928923,0.94114231,104440.0,104430.0,0.10481625]
[1748739929088,0.94114231,104440.0,104430.0,0.1137841]
[1748739930167,0.9948852,104440.0,104430.0,0.1925646]
[1748739930381,0.9948852,104440.0,104430.0,0.23862037]
[1748739930995,0.92199266,104440.0,104430.0,0.02795304]
[1748739931198,0.92199266,104440.0,104430.0,0.22904458]
[1748739931432,0.92199266,104440.0,104430.0,0.23862018]
[1748739931857,0.92199266,104440.0,104430.0,0.21110972]
[1748739932073,0.92199266,104440.0,104430.0,0.2021403]
[1748739932282,0.92199266,104440.0,104430.0,0.22904856]
[1748739932511,0.92199266,104440.0,104430.0,0.21947286]
[1748739933155,0.92199266,104440.0,104430.0,0.23862574]
[1748739934053,0.92199266,104440.0,104430.0,0.23863479]
[1748739934471,0.92199266,104440.0,104430.0,0.23863773]
[1748739935148,0.92199266,104440.0,104430.0,0.23863776]
[1748739935351,0.92199266,104440.0,104430.0,0.2117159]
[1748739935796,0.92199266,104440.0,104430.0,0.23863781]
[1748739935962,0.92199266,104440.0,104430.0,0.2206899]
[1748739936165,0.92199266,104440.0,104430.0,0.23863793]
[1748739936368,0.92199266,104440.0,104430.0,0.2117159]
[1748739936544,0.92199266,104440.0,104430.0,0.22966392]
[1748739936754,0.92199266,104440.0,104430.0,0.2117159]
[1748739936951,0.92199266,104440.0,104430.0,0.22008841]
[1748739937143,0.92199266,104440.0,104430.0,0.21171609]
[1748739937340,0.92199266,104440.0,104430.0,0.22966423]
[1748739937563,0.92199266,104440.0,104430.0,0.22069017]
[1748739937762,0.92199266,104440.0,104430.0,0.22966423]
[1748739937964,0.92199266,104440.0,104430.0,0.21171609]
[1748739938163,0.92199266,104440.0,104430.0,0.22966423]
[1748739938416,0.92199266,104440.0,104430.0,0.20214039]
[1748739938957,0.92199266,104440.0,104430.0,0.01899708]
[1748739939370,0.92199266,104440.0,104430.0,0.00104876]
[1748739939578,0.92199266,104440.0,104430.0,0.01002301]
[1748739939797,0.92199266,104440.0,104430.0,0.00104876]
[1748739940001,0.92199266,104440.0,104430.0,0.02797157]
[1748739940792,0.92199266,104440.0,104430.0,0.01899684]
[1748739940994,0.92199266,104440.0,104430.0,0.02797088]
[1748739941195,0.92199266,104440.0,104430.0,0.01899684]
[1748739941409,0.92199266,104440.0,104430.0,0.02797088]
[1748739941740,0.92199266,104440.0,104430.0,0.04367088]
[1748739941943,0.92199266,104440.0,104430.0,0.06017088]
[1748739942153,0.92199266,104440.0,104430.0,0.06017116]
[1748739942357,0.92199266,104440.0,104430.0,0.0422229]
[1748739942566,0.92199266,104440.0,104430.0,0.06017118]
[1748739942774,0.92199266,104440.0,104430.0,0.06016908]
[1748739942927,0.92199266,104440.0,104430.0,0.05119595]
[1748739943148,0.92199266,104440.0,104430.0,0.03324876]
[1748739943702,0.92199266,104440.0,104430.0,0.05119595]
[1748739943935,0.92199266,104440.0,104430.0,0.04222235]
[1748739944144,0.92199266,104440.0,104430.0,0.23434039]
[1748739944556,0.92199266,104440.0,104430.0,0.25228757]
[1748739944759,0.92199266,104440.0,104430.0,0.23434039]
[1748739944965,0.92199266,104440.0,104430.0,0.25228763]
[1748739945222,0.92199266,104440.0,104430.0,0.23434039]
[1748739945406,0.92199266,104440.0,104430.0,0.24331401]
[1748739945781,0.92199266,104440.0,104430.0,0.25228763]
[1748739945983,0.92199266,104440.0,104430.0,0.23434039]
[1748739946189,0.92199266,104440.0,104430.0,0.25228763]
[1748739946405,0.92199266,104440.0,104430.0,0.24331401]
[1748739946574,0.92199266,104440.0,104430.0,0.23434039]
[1748739946774,0.62907266,104440.0,104430.0,0.23434039]
[1748739946975,0.92191266,104440.0,104430.0,0.23434039]
[1748739948039,0.92191266,104440.0,104430.0,0.25228761]
[1748739948246,0.92191266,104440.0,104430.0,0.23434039]
[1748739949453,0.92191266,104440.0,104430.0,0.25228751]
[1748739949640,0.92191266,104440.0,104430.0,0.24331395]
[1748739949876,0.92191266,104440.0,104430.0,0.24331396]
[1748739950088,0.92191266,104440.0,104430.0,0.23434039]
[1748739950710,0.92191266,104440.0,104430.0,0.2247646]
[1748739950926,1.01442388,104440.0,104430.0,0.03324876]
[1748739953008,1.01442388,104440.0,104430.0,0.04222229]
[1748739953309,0.62907266,104440.0,104430.0,0.04222229]
[1748739953524,0.92191266,104440.0,104430.0,0.04222229]
[1748739953715,0.92191266,104440.0,104430.0,0.03324876]
[1748739953951,0.92191266,104440.0,104430.0,0.04222229]
[1748739954163,0.92191266,104440.0,104430.0,0.03324876]
[1748739954337,0.92191266,104440.0,104430.0,0.04222229]
[1748739955045,0.92191266,104440.0,104430.0,0.03324876]
[1748739955205,0.92191266,104440.0,104430.0,0.04222168]
[1748739955406,0.92191266,104440.0,104430.0,0.03324876]
[1748739955606,0.92191266,104440.0,104430.0,0.04222168]
[1748739956155,0.92191266,104440.0,104430.0,0.03324876]
[1748739956315,0.92191266,104440.0,104430.0,0.04222125]
[1748739957043,0.92191266,104440.0,104430.0,0.04222123]
[1748739957502,0.92191266,104440.0,104430.0,0.04222125]
[1748739958127,0.92191266,104440.0,104430.0,0.03324876]
[1748739958346,0.92191266,104440.0,104430.0,0.04222118]
[1748739958805,0.92191266,104440.0,104430.0,0.04222099]
[1748739959242,0.92191266,104440.0,104430.0,0.042221]
[1748739959895,0.92191266,104440.0,104430.0,0.04222086]
[1748739960609,1.01442388,104440.0,104430.0,0.04222086]
[1748739961074,1.01442388,104440.0,104430.0,0.04222083]
[1748739961300,1.01442388,104440.0,104430.0,0.03324876]
[1748739961733,1.01442388,104440.0,104430.0,0.01674876]
[1748739961964,1.01442388,104440.0,104430.0,0.02572111]
[1748739962192,1.01442388,104440.0,104430.0,0.00104876]
[1748739962384,1.01442388,104440.0,104430.0,0.01002111]
[1748739962589,1.01442388,104440.0,104430.0,0.00104876]
[1748739963384,1.01442388,104440.0,104430.0,0.01002116]
[1748739963574,1.01442388,104440.0,104430.0,0.00104876]
[1748739963975,1.01442388,104440.0,104430.0,0.01002137]
[1748739964274,1.01442388,104440.0,104430.0,0.00104876]
[1748739965844,1.01442388,104440.0,104430.0,0.01002301]
[1748739966043,1.01442388,104440.0,104430.0,0.00104876]
[1748739966661,1.01442388,104440.0,104430.0,0.01002295]
[1748739966927,1.01442388,104440.0,104430.0,0.00104876]
[1748739967136,1.11027818,104440.0,104430.0,0.00104876]
[1748739967563,1.11027818,104440.0,104430.0,0.01002331]
[1748739967782,1.11027818,104440.0,104430.0,0.01002333]
[1748739968033,1.11027818,104440.0,104430.0,0.00104876]
[1748739969467,1.11027818,104440.0,104430.0,0.01002334]
[1748739969674,1.11027818,104440.0,104430.0,0.00104876]
[1748739969890,1.11027818,104440.0,104430.0,0.01002334]
[1748739970356,1.11027818,104440.0,104430.0,0.00104876]
[1748739971565,1.11027818,104440.0,104430.0,4.876e-05]
[1748739972003,1.11227818,104440.0,104430.0,4.876e-05]
[1748739975009,1.52595818,104440.0,104430.0,4.876e-05]
[1748739980519,1.52595818,104440.0,104430.0,0.01634876]
[1748739981024,1.52595818,104440.0,104430.0,0.03184876]
[1748739981476,1.52595818,104440.0,104430.0,0.01554876]
[1748739982069,1.52595818,104440.0,104430.0,4.876e-05]
[1748739984151,2.02125818,104440.0,104430.0,4.876e-05]
[1748739984999,2.02121818,104440.0,104430.0,4.876e-05]
[1748740000561,1.55045903,104440.0,104430.0,4.876e-05]
[1748740010400,1.61662609,104440.0,104430.0,4.876e-05]
[1748740011305,1.61664287,104440.0,104430.0,4.876e-05]
[1748740016343,1.95664287,104440.0,104430.0,4.876e-05]
[1748740016562,1.98542365,104440.0,104430.0,4.876e-05]
[1748740016782,1.9515756,104440.0,104430.0,4.876e-05]
[1748740017469,1.98541946,104440.0,104430.0,4.876e-05]
[1748740022694,1.98571946,104440.0,104430.0,4.876e-05]
[1748740022931,1.94686761,104440.0,104430.0,4.876e-05]
[1748740023150,0.21070713,104410.0,104400.0,0.00423539]
[1748740023374,0.21070713,104410.0,104400.0,0.01369803]
[1748740023375,0.98110799,104410.0,104400.0,0.01369803]
[1748740023606,0.98110799,104410.0,104400.0,0.01369804]
[1748740023830,0.98110799,104410.0,104400.0,0.00472342]
[1748740024059,0.98110799,104410.0,104400.0,0.01369784]
[1748740024407,0.98110799,104410.0,104400.0,0.01369772]
[1748740024623,0.99092489,104410.0,104400.0,0.01468884]
[1748740024838,0.99092489,104410.0,104400.0,0.00148803]
[1748740025541,0.99092489,104410.0,104400.0,0.01045369]
[1748740025749,0.99092489,104410.0,104400.0,0.01045308]
[1748740025954,0.99092489,104410.0,104400.0,0.00048803]
[1748740026365,0.99092489,104410.0,104400.0,0.00248803]
[1748740027632,0.99122489,104410.0,104400.0,0.00248803]
[1748740035204,0.92499918,104410.0,104400.0,0.00248803]
[1748740035414,0.94415378,104410.0,104400.0,0.00248803]
[1748740048095,0.93433688,104410.0,104400.0,0.00248803]
[1748740052172,0.93433688,104410.0,104400.0,0.01146582]
[1748740053424,0.93403688,104410.0,104400.0,0.01146582]
[1748740053644,1.0265481,104410.0,104400.0,0.01146582]
[1748740054082,1.0265481,104410.0,104400.0,0.01146594]
[1748740054523,1.0268481,104410.0,104400.0,0.01146594]
[1748740054742,1.0268481,104410.0,104400.0,0.01146571]
[1748740054962,1.0268481,104410.0,104400.0,0.01146575]
[1748740056234,1.0268481,104410.0,104400.0,0.01146551]
[1748740056686,1.0268481,104410.0,104400.0,0.00248803]
[1748740056901,1.0268481,104410.0,104400.0,0.01146551]
[1748740057089,1.0268481,104410.0,104400.0,0.01146536]
[1748740058702,1.0268481,104410.0,104400.0,0.01146538]
[1748740058928,1.0268481,104410.0,104400.0,0.00248803]
[1748740059149,1.0268481,104410.0,104400.0,0.01146538]
[1748740060071,1.0268481,104410.0,104400.0,0.0114653]
[1748740061486,1.0268481,104410.0,104400.0,0.00248803]
[1748740061698,1.0268481,104410.0,104400.0,0.01146518]
[1748740061902,0.93433688,104410.0,104400.0,0.00248803]
[1748740062319,1.34817688,104410.0,104400.0,0.01146518]
[1748740063598,1.34817688,104410.0,104400.0,0.01146514]
[1748740063999,1.34817688,104410.0,104400.0,0.00248803]
[1748740065583,1.34817688,104410.0,104400.0,0.01146513]
[1748740065810,1.34817688,104410.0,104400.0,0.01146514]
[1748740065994,1.34821688,104410.0,104400.0,0.00248803]
[1748740066399,1.34821688,104410.0,104400.0,0.01146514]
[1748740066579,1.34821688,104410.0,104400.0,0.00248803]
[1748740066776,0.93437688,104410.0,104400.0,0.01146531]
[1748740067848,0.93437688,104410.0,104400.0,0.00248803]
[1748740068175,0.93437688,104410.0,104400.0,0.01146535]
[1748740068750,0.93437688,104410.0,104400.0,0.0114654]
[1748740068925,1.0268881,104410.0,104400.0,0.0114654]
[1748740069128,0.93437688,104410.0,104400.0,0.0114654]
[1748740069584,0.93437688,104410.0,104400.0,0.00248803]
[1748740069787,0.93437688,104410.0,104400.0,0.0114654]
[1748740070453,0.93433688,104410.0,104400.0,0.00248803]
[1748740070934,0.93433688,104410.0,104400.0,0.01146562]
[1748740071170,0.98845529,104410.0,104400.0,0.01146565]
[1748740071788,0.98845529,104410.0,104400.0,0.01146567]
[1748740071991,0.98845529,104410.0,104400.0,0.01146592]
[1748740072230,0.98845529,104410.0,104400.0,0.01146591]
[1748740072764,0.98845529,104410.0,104400.0,0.01146594]
[1748740073145,0.98815529,104410.0,104400.0,0.01146594]
[1748740074145,0.98815529,104410.0,104400.0,0.01146623]
[1748740074951,0.98815529,104410.0,104400.0,0.00248803]
[1748740075160,0.98815529,104410.0,104400.0,0.01146624]
[1748740075734,0.98815529,104410.0,104400.0,0.01146635]
[1748740076333,0.98815529,104410.0,104400.0,0.00248803]
[1748740076795,0.98815529,104410.0,104400.0,0.01146636]
[1748740076988,0.98815529,104410.0,104400.0,0.00248803]
[1748740077202,0.98815529,104410.0,104400.0,0.01146638]
[1748740077872,0.98815529,104410.0,104400.0,0.00248803]
[1748740078299,0.99763854,104410.0,104400.0,0.00248803]
[1748740078978,0.99763854,104410.0,104400.0,0.01146638]
[1748740079174,0.99763854,104410.0,104400.0,0.00248803]
[1748740080185,0.99763854,104410.0,104400.0,0.01146646]
[1748740080390,0.99763854,104410.0,104400.0,0.01808803]
[1748740080621,0.99763854,104410.0,104400.0,0.03458803]
[1748740081672,0.99763854,104410.0,104400.0,0.04356655]
[1748740082120,0.99763854,104410.0,104400.0,0.03458803]
[1748740084210,0.99763854,104410.0,104400.0,0.04356669]
[1748740085009,0.99763854,104410.0,104400.0,0.04356666]
[1748740085234,1.15976069,104410.0,104400.0,0.00248803]
[1748740086353,1.15976069,104410.0,104400.0,0.00048803]
[1748740090911,1.15976069,104410.0,104400.0,0.03078803]
[1748740095901,1.15976069,104410.0,104400.0,0.01568803]
[1748740096108,1.15976069,104410.0,104400.0,0.00048803]
[1748740099099,1.57364069,104410.0,104400.0,0.00048803]
[1748740101244,1.57364069,104410.0,104400.0,0.01598803]
[1748740101494,1.57364069,104410.0,104400.0,0.03148803]
[1748740107016,1.13708228,104410.0,104400.0,0.03148803]
[1748740107262,0.79025245,104410.0,104400.0,0.03148803]
[1748740107485,0.79025245,104410.0,104400.0,0.91955008]
[1748740107486,0.34773515,104410.0,104400.0,0.91955008]
[1748740107688,0.34773515,104410.0,104400.0,1.01540438]
[1748740108126,0.3668892,104410.0,104400.0,1.01540438]
[1748740108353,0.34773515,104410.0,104400.0,0.99990438]
[1748740108548,0.33113515,104410.0,104400.0,0.92543071]
[1748740108792,0.33113515,104410.0,104400.0,1.24421369]
[1748740109027,0.33113515,104410.0,104400.0,1.20875454]
[1748740109459,0.33113515,104410.0,104400.0,0.93997156]
[1748740109663,0.33113515,104410.0,104400.0,1.20875454]
[1748740109871,0.33113515,104410.0,104400.0,1.25975454]
[1748740110077,0.33113515,104410.0,104400.0,1.20975454]
[1748740110314,0.33113515,104410.0,104400.0,0.94097156]
[1748740110941,0.33113515,104410.0,104400.0,1.20875454]
[1748740111136,0.33113515,104410.0,104400.0,1.55143454]
[1748740111787,0.29793515,104410.0,104400.0,1.56983454]
[1748740112428,0.28233515,104410.0,104400.0,1.58573454]
[1748740112687,0.25113515,104410.0,104400.0,0.99816858]
[1748740112886,0.25113515,104410.0,104400.0,1.26695156]
[1748740113311,0.25113515,104410.0,104400.0,1.53573454]
[1748740117182,0.25113515,104410.0,104400.0,1.58573454]
[1748740117388,0.25113515,104410.0,104400.0,1.53573454]
[1748740117697,0.25113515,104410.0,104400.0,1.51983454]
[1748740117905,0.25113515,104410.0,104400.0,1.50443454]
[1748740118557,0.25113515,104410.0,104400.0,0.96686858]
[1748740118796,0.25113515,104410.0,104400.0,0.65964773]
[1748740119048,0.4809967,104410.0,104400.0,0.63091321]
[1748740119294,0.52909578,104410.0,104400.0,0.44826616]
[1748740119525,0.52909578,104410.0,104400.0,0.44892087]
[1748740119730,0.52909578,104410.0,104400.0,0.35306657]
[1748740119731,0.46184265,104410.0,104400.0,0.35306657]
[1748740120755,0.45226521,104410.0,104400.0,0.39348803]
[1748740121337,0.45226521,104410.0,104400.0,0.34348803]
[1748740121788,0.45226521,104410.0,104400.0,0.05348803]
[1748740122048,0.54477643,104410.0,104400.0,0.00348803]
[1748740128517,0.45226521,104410.0,104400.0,0.00348803]
[1748740139163,0.45226521,104410.0,104400.0,0.00448803]
[1748740139362,0.41426521,104410.0,104400.0,0.00448803]
[1748740141781,0.70686521,104410.0,104400.0,0.00448803]
[1748740142654,0.70662576,104410.0,104400.0,0.00448803]
[1748740143941,0.70662576,104410.0,104400.0,0.01344204]
[1748740144170,0.70662576,104410.0,104400.0,0.00448803]
[1748740144954,0.70662576,104410.0,104400.0,0.01344751]
[1748740145168,0.70662576,104410.0,104400.0,0.01344754]
[1748740145779,0.70662576,104410.0,104400.0,0.00448803]
[1748740145982,0.70662576,104410.0,104400.0,0.01344754]
[1748740146208,0.70662576,104410.0,104400.0,0.00448803]
[1748740146407,0.70662576,104410.0,104400.0,0.01344787]
[1748740147354,0.70662576,104410.0,104400.0,0.01345607]
[1748740147574,0.70662576,104410.0,104400.0,0.01345623]
[1748740148628,0.70662576,104410.0,104400.0,0.00448803]
[1748740148864,0.70662576,104410.0,104400.0,0.01345639]
[1748740149008,0.70662576,104410.0,104400.0,0.0134564]
[1748740149251,0.79913698,104410.0,104400.0,0.0134564]
[1748740149439,0.83053698,104410.0,104400.0,0.0134564]
[1748740150198,0.83053698,104410.0,104400.0,0.0104564]
[1748740150403,0.83053698,104410.0,104400.0,0.01045901]
[1748740150542,0.83053698,104410.0,104400.0,0.00946099]
[1748740150956,0.83253698,104410.0,104400.0,0.00946099]
[1748740151163,0.81643698,104410.0,104400.0,0.00946099]
[1748740151420,0.81643698,104410.0,104400.0,0.00048803]
[1748740151632,0.70862576,104410.0,104400.0,0.00946049]
[1748740152236,0.70862576,104410.0,104400.0,0.0094634]
[1748740152468,0.70862576,104410.0,104400.0,0.00946403]
[1748740152647,0.79826576,104410.0,104400.0,0.00946403]
[1748740152843,0.79826576,104410.0,104400.0,0.00048803]
[1748740153048,0.79826576,104410.0,104400.0,0.00946327]
[1748740153254,0.82097458,104410.0,104400.0,0.00946327]
[1748740154779,0.82097458,104410.0,104400.0,0.0094632]
[1748740154993,0.82097458,104410.0,104400.0,0.00946259]
[1748740156073,0.82097458,104410.0,104400.0,0.0094622]
[1748740156302,0.82097458,104410.0,104400.0,0.00946221]
[1748740157279,0.82097458,104410.0,104400.0,0.00946221]
[1748740157504,0.82097458,104410.0,104400.0,0.00946172]
[1748740157719,0.82097458,104410.0,104400.0,0.00946131]
[1748740158603,0.82097458,104410.0,104400.0,0.00946112]
[1748740158921,0.82097458,104410.0,104400.0,0.00048803]
[1748740159050,0.82097458,104410.0,104400.0,0.00946097]
[1748740159699,0.85377458,104410.0,104400.0,0.00946086]
[1748740159944,0.85377458,104410.0,104400.0,0.00946054]
[1748740161601,0.85377458,104410.0,104400.0,0.0094603]
[1748740162730,0.85377458,104410.0,104400.0,0.00946012]
[1748740164651,0.85377458,104410.0,104400.0,0.00945999]
[1748740165482,0.85377458,104410.0,104400.0,0.00946006]
[1748740166160,0.85377458,104410.0,104400.0,0.00946021]
[1748740166832,0.94962888,104410.0,104400.0,0.00946022]
[1748740167051,1.32341319,104410.0,104400.0,0.00048803]
[1748740167271,1.35580949,104410.0,104400.0,0.00048803]
[1748740167525,1.38457149,104410.0,104400.0,0.00048803]
[1748740167737,1.39457149,104410.0,104400.0,0.00048803]
[1748740171568,1.33794364,104410.0,104400.0,0.00048803]
[1748740174800,1.75178364,104410.0,104400.0,0.00048803]